Cogmind - Beta 15 @@@ ROGUE MODE // 2025.06.22 @ 00:22:49 // AFD2020/Player2 Player: Demo Result: Destroyed by H-66 Slayer with Gauss Rifle Performance ------------- Evolutions (5) 2500 Regions Visited (19) 3800 Robots Destroyed (157) 785 Value Destroyed (5376) 5376 Prototype IDs (250) 5000 Alien Tech Used (0) 0 Bonus (8121) 8121 TOTAL SCORE: 25582 Bonus ------- High Alert Combat Kills 215 Follower Combat Kills 2752 Aligned with FarCom 300 Met Data Miner 300 Used Data Conduit 3000 Met Imprinter 300 Destroyed Z-Imprinter 1000 Triggered Deep Caves Wall 500 Exposed GOLEM Chamber 500 Pursued by Intercept 500 Friendly Fire -1246 Cogmind --------- Core Integrity 0/1000 Matter 299/300 Energy 174/1100 System Corruption 0% Temperature Cool (0) Movement Core (50) Location -5/Factory Parts ------- > --- POWER (1) -------- (None) > --- PROPULSION (4) --- (None) > --- UTILITY (6) ------ Assembled Nanovents Assembled Biocell Array GOLEM Unit > --- WEAPON (6) ------- (None) > --- INVENTORY (5) ---- GOLEM Unit GOLEM Unit Peak State ------------ > --- POWER ------------ Neutrino Core > --- PROPULSION ------- Armored Wheel Armored Wheel Armored Huge Wheel > --- UTILITY ---------- Experimental Heat Sink Huge Storage Unit Assembled Biocell Array Layered Medium Armor Plating GOLEM Unit > --- WEAPON ----------- Assembled Focal Cannon Assembled Focal Cannon Assembled Focal Cannon Firepult Flak Gun > --- INVENTORY -------- Surveybot 24 Chip Mobile Assembly Unit GOLEM Unit GOLEM Unit GOLEM Unit GOLEM Unit GOLEM Unit GOLEM Unit GOLEM Unit GOLEM Unit Molecular Deconstructor [Rating: 123] Favorites ----------- Power Reinforced Deuterium Engine Engine Reinforced Deuterium Engine Power Core Neutrino Core Reactor Antimatter Reactor Propulsion Wheel Leg Carbon-fiber Leg Wheel Wheel Flight Unit Improved Flight Unit Utility Huge Storage Unit Device Experimental Heat Sink Storage Huge Storage Unit Processor Salvage Targeting Computer Protection Medium Reflective Plating Weapon Assembled Focal Cannon Energy Gun Zionite Phaser-S Energy Cannon Assembled Focal Cannon Ballistic Gun Minigun Ballistic Cannon Gauss Cannon Launcher Proton Missile Launcher Special Weapon Plasma Cutter Impact Weapon Great Maul Build | -11 -10 -10 -9 -9 -9 -8 -8 -7 -7 -7 -7 -7 -6 -6 -6 -6 -6 -5 -5 ------- Run | Yrd Mat Min Mat Min Exi Min Mat Fac Low Low Zio Dee Pro Fac Low Low Dat Pro Fac Slots Evolved 10 | . . . 2 . . . 2 2 . . . . . 2 . . . . 2 Power . | . . . . . . . . . . . . . . . . . . . . Propulsion 2 | . . . . . . . . . . . . . . 2 . . . . . Utility 4 | . . . . . . . 2 . . . . . . . . . . . 2 Weapon 4 | . . . 2 . . . . 2 . . . . . . . . . . . Parts Attached 145 | 7 10 3 15 1 1 . 3 10 6 11 6 38 1 7 3 2 2 1 18 Power 12 | 1 1 . 1 . . . . 1 . 1 . 3 . . . . . 1 3 Engine 5 | 1 1 . 1 . . . . 1 . 1 . . . . . . . . . Core 3 | . . . . . . . . . . . . . . . . . . 1 2 Reactor 4 | . . . . . . . . . . . . 3 . . . . . . 1 Propulsion 28 | 2 . 1 3 1 . . . 4 . . . 6 1 4 . 1 . . 5 Treads . | . . . . . . . . . . . . . . . . . . . . Leg 3 | . . . . . . . . . . . . 3 . . . . . . . Wheel 24 | 2 . 1 2 1 . . . 4 . . . 3 1 4 . 1 . . 5 Hover . | . . . . . . . . . . . . . . . . . . . . Flight 1 | . . . 1 . . . . . . . . . . . . . . . . Utility 49 | 2 5 1 1 . . . 2 4 2 3 5 14 . 3 1 . 2 . 4 Device 25 | 1 1 . 1 . . . . 1 1 1 4 8 . 1 1 . 1 . 4 Storage 6 | 1 3 . . . . . . . . . . 1 . 1 . . . . . Processor 3 | . 1 1 . . . . . 1 . . . . . . . . . . . Hackware . | . . . . . . . . . . . . . . . . . . . . Protection 15 | . . . . . . . 2 2 1 2 1 5 . 1 . . 1 . . Artifact . | . . . . . . . . . . . . . . . . . . . . Weapon 56 | 2 4 1 10 . 1 . 1 1 4 7 1 15 . . 2 1 . . 6 Energy Gun 21 | 1 1 . 3 . . . . . 3 6 . 7 . . . . . . . Energy Cannon 7 | . . 1 . . . . . . . . . 3 . . . . . . 3 Ballistic Gun 19 | 1 2 . 7 . 1 . . . . . . 2 . . 2 1 . . 3 Ballistic Cannon 2 | . . . . . . . . . . . . 2 . . . . . . . Launcher 5 | . 1 . . . . . 1 1 1 1 . . . . . . . . . Special Weapon 1 | . . . . . . . . . . . 1 . . . . . . . . Impact Weapon 1 | . . . . . . . . . . . . 1 . . . . . . . Slashing Weapon . | . . . . . . . . . . . . . . . . . . . . Piercing Weapon . | . . . . . . . . . . . . . . . . . . . . Special Melee Weapon . | . . . . . . . . . . . . . . . . . . . . Unidentified Prototypes 14 | . 1 . 2 . . . 1 . . . . 10 . . . . . . . Corrupted Parts 3 | . . . . . . . . . . . 3 . . . . . . . . System Corruption 22 | . . . . . . . . . . . 22 . . . . . . . . Parts Lost 43 | . . 2 1 . . . . . 2 8 . 13 . . . . . . 17 Power 4 | . . . . . . . . . . . . 1 . . . . . . 3 Propulsion 9 | . . 1 1 . . . . . . . . 2 . . . . . . 5 Utility 6 | . . . . . . . . . . 2 . 2 . . . . . . 2 Weapon 24 | . . 1 . . . . . . 2 6 . 8 . . . . . . 7 Highest Loss Streak 15 | . . 2 1 . . . . . 1 5 . 9 . . . . . . 15 To Critical Strikes 1 | . . . . . . . . . . . . . . . . . . . 1 Average Backups 17 | 2 12 23 24 25 24 24 23 23 22 23 23 15 13 13 12 12 12 12 12 Power 1 | . . 1 1 1 1 1 1 . . 1 3 1 . . . . . . . Propulsion 2 | 1 3 3 3 5 5 5 5 3 3 3 5 1 . . . . . . . Utility 9 | . 3 12 10 5 4 4 3 6 8 10 10 9 13 13 11 11 11 11 10 Weapon 4 | . 4 5 8 13 13 13 13 12 10 6 4 2 . . . 1 1 1 1 Tool/Special . | . . . . . . . . . . . . . . . . . . . . Unused Backups 94 | . 9 8 20 . 4 . 1 8 6 . 1 23 1 1 . . . . 12 Power 8 | . . . 1 . . . . 1 . . 1 4 . 1 . . . . . Propulsion 19 | . 4 2 1 . . . . 2 . . . 9 1 . . . . . . Utility 46 | . . 4 14 . 2 . . 1 4 . . 10 . . . . . . 11 Weapon 21 | . 5 2 4 . 2 . 1 4 2 . . . . . . . . . 1 Tool/Special . | . . . . . . . . . . . . . . . . . . . . Average Slot Usage (%) 87 | . 98 100 99 100 81 66 62 68 88 75 90 86 85 81 86 86 86 86 85 Engine 5 | . 14 14 11 11 11 11 9 7 7 7 7 2 . . . . . . . Reactor 2 | . . . . . . . . . . . . 4 7 6 6 6 6 5 . Wheel 14 | . 28 28 21 22 22 22 18 11 7 7 7 11 8 15 20 20 20 20 17 Device 10 | . 11 . 7 11 11 11 9 10 16 16 12 13 7 6 6 6 6 6 11 Storage 9 | . 14 14 11 11 11 11 9 7 7 7 7 8 15 13 13 13 13 13 10 Protection 5 | . . . . . . . 8 6 6 2 9 6 7 6 6 6 6 6 4 Energy Gun 8 | . 12 . . . . . . . 15 28 20 13 7 6 5 . . . . Energy Cannon 11 | . . 2 1 . . . . . . . . 15 30 26 26 26 26 26 30 Ballistic Gun 10 | . 14 25 41 44 26 11 9 22 15 2 . . . . . 6 6 6 1 Launcher 2 | . . . . . . . . . 10 1 16 1 . . . . . . . Peak Build Rating 123 | 7 11 12 22 22 49 49 55 73 71 53 51 114 109 109 109 107 111 109 123 Average Rating 65 | 5 8 11 19 21 37 49 53 66 47 44 48 79 107 108 108 106 107 108 117 On Entrance 59 | . 6 10 12 22 22 49 49 55 73 46 43 48 103 109 109 105 107 109 108 Naked Turns . | . . . . . . . . . . . . . . . . . . . . Heaviest Build 179 | 12 90 90 97 97 100 100 115 134 129 126 132 175 170 177 179 176 176 176 179 Greatest Support 56 | 26 26 26 20 26 26 26 26 32 28 28 28 43 28 54 50 52 52 52 56 Greatest Overweight (x) 10 | . 3 4 4 4 3 3 4 5 4 4 4 6 6 6 3 3 4 3 10 Average Overweight (x) 3 | . 1 3 4 3 3 3 3 3 4 3 4 4 6 3 3 3 3 3 3 Largest Inventory Capacity 25 | 8 25 25 25 25 25 25 25 25 25 25 25 25 25 25 25 25 25 25 25 Average Capacity 23 | 7 17 25 25 25 25 25 25 25 25 25 25 21 25 25 25 25 25 25 24 Most Carried 25 | 8 25 25 25 25 25 25 25 25 25 25 25 25 25 25 25 25 25 25 25 Average Carried 22 | 2 12 24 24 25 24 25 24 24 23 24 24 20 25 25 24 25 25 25 24 Final Capacity 25 | 8 25 25 25 25 25 25 25 25 25 25 25 25 25 25 25 25 25 25 5 Final Carried 25 | 8 22 25 25 25 25 25 25 25 25 25 25 25 25 25 25 25 25 25 4 Class Distribution -------------------- 24% | Executioner 21% | Pyromaniac-Executioner 17% | Scavenger-Executioner 12% | Gunner 8% | Mutant 5% | Scavenger-Gunner 4% | Golem Dominant Class ---------------- Mutant | -10/Materials Mutant | -10/Mines Gunner | -9/Materials Gunner | -9/Mines Gunner | -9/Exiles Skirmisher | -8/Mines Skirmisher | -8/Materials Executioner | -7/Factory Executioner | -7/Lower Caves Executioner | -7/Lower Caves Executioner | -7/Zion Scavenger-Executioner | -7/Deep Caves Pyromaniac-Executioner | -6/Proximity Caves Pyromaniac-Executioner | -6/Factory Pyromaniac-Executioner | -6/Lower Caves Pyromaniac-Executioner | -6/Lower Caves Pyromaniac-Executioner | -6/Data Miner Pyromaniac-Executioner | -5/Proximity Caves Golem | -5/Factory Resources | -11 -10 -10 -9 -9 -9 -8 -8 -7 -7 -7 -7 -7 -6 -6 -6 -6 -6 -5 -5 ----------- Run | Yrd Mat Min Mat Min Exi Min Mat Fac Low Low Zio Dee Pro Fac Low Low Dat Pro Fac Matter Collected 4346 | 284 187 479 707 186 20 37 123 604 334 151 184 620 15 84 74 40 35 10 172 Remotely . | . . . . . . . . . . . . . . . . . . . . Salvage Created 9517 | 177 202 180 940 404 . 57 52 691 395 187 . 3296 128 286 394 323 330 339 1136 Parts 357 | 14 15 10 61 24 . 5 2 37 18 8 . 28 9 24 11 17 7 11 56 Haulers Intercepted 5 | . . . 4 . . . . . . . . . . . . . . . 1 Recyclers Shooed 2 | . 1 . . . . . . . . . . . . . . . . . 1 Parts Field Recycled 38 | . . . . . . . . . . . . 38 . . . . . . . Retrieved Matter 205 | . . . . . . . . . . . . 205 . . . . . . . Parts Self-Destructed 82 | . . . . . . . . . 10 5 . . 16 . 33 13 . 5 . Prevented 19 | . . . . . . . . . 14 5 . . . . . . . . . Kills | -11 -10 -10 -9 -9 -9 -8 -8 -7 -7 -7 -7 -7 -6 -6 -6 -6 -6 -5 -5 ------- Run | Yrd Mat Min Mat Min Exi Min Mat Fac Low Low Zio Dee Pro Fac Low Low Dat Pro Fac Combat Hostiles Destroyed 161 | . 5 5 10 4 . 3 1 12 8 5 . 67 3 1 5 8 4 7 13 Guns 45 | . 2 5 8 4 . 3 1 12 1 2 . 5 1 . 1 . . . . Cannons 37 | . . . 2 . . . . . . . . 7 2 1 4 5 . 6 10 AOE 49 | . 3 . . . . . . . 7 3 . 32 . . . 2 . 1 1 Classes Destroyed 23 | 3 3 1 3 1 . . . 2 2 . . 4 . . 1 1 . 1 1 Worker 19 | 2 . . 4 1 . . . 3 . . . . . 2 . . . . 7 Builder 6 | . 1 . 2 . . . . . . . . . . 1 . . . . 2 Tunneler 8 | 5 . . . 1 . . . 1 . . . . . 1 . . . . . Hauler 5 | . . . 4 . . . . . . . . . . . . . . . 1 Recycler 7 | 1 . . 1 2 . . . 1 . . . . . 1 . . . . 1 Mechanic 1 | . . . . . . . . . . . . . . . . . . . 1 Operator 2 | . . . 1 . . . . . . . . . . 1 . . . . . Watcher 5 | . 1 . 3 . . . . 1 . . . . . . . . . . . Swarmer 27 | . . 4 1 . . 3 . 4 3 . . . 2 . . 6 . 3 1 Grunt 33 | . 5 1 4 3 . . 1 4 2 5 . . 1 . 2 1 . . 4 Brawler 4 | . . . . . . . . . 2 . . . . . 1 . . . 1 Duelist 1 | . . . . 1 . . . . . . . . . . . . . . . Sentry 8 | . . . 5 . . . . 1 . . . . . 1 . 1 . . . Specialist 2 | . . . . . . . . . . . . . . . 1 . . . 1 Hunter 3 | . . . . . . . . 1 . . . . . . 1 . . . 1 Programmer 6 | . . . . . . . . 2 . . . . . . . . . . 4 Enhanced Grunt 4 | . . . . . . . . . . . . . . . . . 4 . . Tracker 1 | . . . . . . . . . . . . . . . . . . . 1 Z-Light 4 | . . . . . . . . . . . . 4 . . . . . . . Samaritan 1 | . . . . . . . . . . . . . . . . 1 . . . Thief 1 | . . . . . . . . . 1 . . . . . . . . . . Assembler 2 | . . . . . . . . . . . . 2 . . . . . . . Assembled 42 | . . . . . . . . . . . . 42 . . . . . . . Golem 21 | . . . . . . . . . . . . 21 . . . . . . . Thug 2 | . . 1 1 . . . . . . . . . . . . . . . . Butcher 3 | . . . . . . . . . . . . . . . . . . 3 . Mutant 1 | . . . . . . . . . . . . . . . . . . 1 . Best Kill Streak 32 | 4 3 3 3 3 . 3 1 4 3 3 . 32 2 2 2 5 4 4 6 Combat Bots Only 32 | . 3 3 2 3 . 3 1 4 3 3 . 32 2 1 2 5 4 4 3 Max Kills in Single Turn 8 | 1 2 1 2 2 . 1 1 2 3 2 . 8 1 2 1 2 2 2 2 Gunslinging 1 | . . . . . . . . 1 . . . 1 . . . . . . . Exploded 6 | . 2 . . . . . . . 3 2 . 6 . . . 2 . 1 1 Melee . | . . . . . . . . . . . . . . . . . . . . Uniques/NPCs Destroyed 1 | . . . . . . . . . . . . 1 . . . . . . . Z-Imprinter (-7/Deep Caves) Combat | -11 -10 -10 -9 -9 -9 -8 -8 -7 -7 -7 -7 -7 -6 -6 -6 -6 -6 -5 -5 -------- Run | Yrd Mat Min Mat Min Exi Min Mat Fac Low Low Zio Dee Pro Fac Low Low Dat Pro Fac Hostile Shots Fired 521 | . 17 25 29 3 . 5 . 31 32 56 . 67 12 . 20 6 9 11 198 Missed 154 | . 6 11 6 1 . 2 . 16 6 16 . 19 2 . 8 1 5 6 49 Hits 367 | . 11 14 23 2 . 3 . 15 26 40 . 48 10 . 12 5 4 5 149 Melee 7 | . . . 1 . . . . . 2 2 . 1 . . 1 . . . . Projectile 360 | . 11 14 22 2 . 3 . 15 24 38 . 47 10 . 11 5 4 5 149 AOE 1 | . . . . . . . . . . . . . . 1 . . . . . Critical Strikes 11 | . 1 . . . . . . . 2 1 . . 2 . 1 . . . 4 Actively Blocked 1 | . . . . . . . . . . . . . 1 . . . . . . Part Disruptions 1 | . . . . . . . . . . . . . . . . . 1 . . Damage Taken 7650 | . 184 128 353 42 . 30 . 293 698 886 . 1395 223 14 237 119 185 68 2795 Core 1101 | . 66 15 35 . . . . 20 132 83 . 127 . . . 34 45 14 530 Absorbed by Shields . | . . . . . . . . . . . . . . . . . . . . Redirected to Shielding 126 | . . . . . . . . . . . . 15 111 . . . . . . Ignored by Resistances 121 | . . . . . . . . 8 . . . 113 . . . . . . . Regen/Repaired (Parts) 202 | . . . . . . . . . . . 202 . . . . . . . . Core Remaining (%) 71 | 100 . 52 . . . 88 100 . . . . . 19 . . . . 71 . Volleys Fired 440 | 16 28 16 43 11 . 4 4 25 18 20 . 128 10 9 23 14 7 7 57 Largest 6 | 2 2 2 4 4 . 1 1 3 6 6 . 6 3 3 4 3 3 3 6 Hottest 510 | 60 60 40 120 100 . 60 60 110 218 315 . 510 250 75 135 250 250 250 345 Shots Fired 1016 | 32 49 31 172 44 . 4 4 73 60 45 . 248 18 15 43 21 11 15 131 Gun 605 | 32 47 31 162 44 . 4 4 73 50 39 . 108 4 . 6 . 1 . . Cannon 393 | . . . 10 . . . . . . . . 140 14 15 37 21 10 15 131 Launcher 18 | . 2 . . . . . . . 10 6 . . . . . . . . . Special . | . . . . . . . . . . . . . . . . . . . . Kinetic 389 | 16 26 31 156 44 . 4 4 73 24 . . 10 . . . . 1 . . Thermal 446 | 16 21 . 16 . . . . . . . . 150 14 15 37 21 10 15 131 Explosive 6 | . 2 . . . . . . . . 4 . . . . . . . . . Electromagnetic 118 | . . . . . . . . . 36 41 . 41 . . . . . . . Phasic 57 | . . . . . . . . . . . . 47 4 . 6 . . . . Robot Hit Streak 16 | 13 5 7 8 5 . 4 5 16 11 8 . 8 8 4 12 4 8 4 9 Robot Miss Streak 9 | 3 3 3 8 3 . 3 4 6 3 3 . 9 3 1 1 3 2 3 6 Penetration Max . | . . . . . . . . . . . . . . . . . . . . Secondary Targets 8 | . . 3 1 1 . . . 1 1 . . 1 . . . . . . . Max Gunslinging Chain 1 | . . 1 1 1 . . . 1 1 . . 1 . . . . . . . Shots Hit Robots 498 | 21 26 20 83 20 . 4 2 46 40 26 . 69 13 8 28 8 9 9 66 Core Hits 483 | 8 17 9 37 11 . 3 3 30 24 22 . 232 6 6 12 8 8 15 32 Critical Kills . | . . . . . . . . . . . . . . . . . . . . Critical Parts Destroyed 3 | . . . 1 1 . . . 1 . . . . . . . . . . . Critical Strikes 5 | . . . 2 1 . . . 1 . 1 . . . . . . . . . Destroy 4 | . . . 2 1 . . . 1 . . . . . . . . . . . Corrupt 1 | . . . . . . . . . . 1 . . . . . . . . . Melee Attacks 13 | . . . . . . . . . . . . 13 . . . . . . . Impact 13 | . . . . . . . . . . . . 13 . . . . . . . Slashing . | . . . . . . . . . . . . . . . . . . . . Piercing . | . . . . . . . . . . . . . . . . . . . . Sneak Attacks . | . . . . . . . . . . . . . . . . . . . . Combat Hostiles . | . . . . . . . . . . . . . . . . . . . . Follow-up Attacks . | . . . . . . . . . . . . . . . . . . . . Damage Inflicted 20864 | 248 469 269 1444 340 . 147 163 1485 1268 885 . 5875 534 508 1211 633 505 865 4015 Guns 6194 | 248 341 269 1270 340 . 147 163 1485 522 397 . 726 99 . 165 . 22 . . Cannons 8004 | . . . 174 . . . . . . . . 899 410 508 1046 406 245 529 3787 Explosions 6535 | . 128 . . . . . . . 746 488 . 4123 25 . . 227 238 336 224 Melee 127 | . . . . . . . . . . . . 127 . . . . . . . Ramming 4 | . . . . . . . . . . . . . . . . . . . 4 Kinetic 4355 | 91 231 269 1226 340 . 147 163 1485 275 . . 106 . . . . 22 . . Thermal 13910 | 157 110 . 218 . . . . . 136 109 . 5199 435 508 1046 633 483 865 4011 Explosive 473 | . 128 . . . . . . . . 345 . . . . . . . . . Electromagnetic 1533 | . . . . . . . . . 857 431 . 245 . . . . . . . Impact 127 | . . . . . . . . . . . . 127 . . . . . . . Slashing . | . . . . . . . . . . . . . . . . . . . . Piercing . | . . . . . . . . . . . . . . . . . . . . Phasic 462 | . . . . . . . . . . . . 198 99 . 165 . . . . Highest Corruption 22 | . . . 1 1 1 1 . . . . 22 . . 5 5 . . . . Average Corruption 1 | . . . 1 1 1 1 . . . . 18 . . 5 4 . . . . Corruption Purged 5 | . . . . . . . . . . . . . . . 5 . . . . Corruption Blocked . | . . . . . . . . . . . . . . . . . . . . Effects 30 | . . . 11 8 1 . . . . . 1 . . 4 5 . . . . Message Errors 8 | . . . 5 2 . . . . . . . . . 1 . . . . . Matter Fused 6 | . . . 4 1 . . . . . . . . . 1 . . . . . Heat Flow Errors 2 | . . . . . . . . . . . 1 . . . 1 . . . . Energy Discharges 8 | . . . 2 2 1 . . . . . . . . 1 2 . . . . Data Loss (minor) 2 | . . . . . . . . . . . . . . 1 1 . . . . Data Loss (major) 3 | . . . . 3 . . . . . . . . . . . . . . . Misfires 1 | . . . . . . . . . . . . . . . 1 . . . . Overload Shots . | . . . . . . . . . . . . . . . . . . . . Overflow Damage 787 | . . . . . . . . . 6 . . 205 2 75 50 56 3 47 343 Projectiles 566 | . . . . . . . . . . . . 12 2 75 50 48 3 47 329 Explosions 108 | . . . . . . . . . 6 . . 80 . . . 8 . . 14 Melee 113 | . . . . . . . . . . . . 113 . . . . . . . Knockbacks . | . . . . . . . . . . . . . . . . . . . . Impact . | . . . . . . . . . . . . . . . . . . . . Kinetic . | . . . . . . . . . . . . . . . . . . . . Secondary . | . . . . . . . . . . . . . . . . . . . . Self-Inflicted Damage 124 | . . . . . . . . . 69 . . 20 . . . 33 . . 2 Shots 7 | . . . . . . . . . 4 . . 1 . . . 2 . . . Rammed 1 | . . . . . . . . . . . . . . . . . . . 1 Targets Rammed 1 | . . . . . . . . . . . . . . . . . . . 1 Kicked . | . . . . . . . . . . . . . . . . . . . . Crushed . | . . . . . . . . . . . . . . . . . . . . Highest Temperature 355 | . 75 5 146 6 . 40 26 158 104 200 65 271 148 . 218 201 228 152 355 Average Temperature 78 | . 48 5 50 6 . 25 16 46 47 79 39 96 54 . 50 97 119 71 85 Received Heat Transfer 1392 | . 102 24 114 12 . . . 51 183 243 . 285 27 12 81 18 . . 240 Effects 1 | . . . . . . . . . . . . . . . . . . . 1 Damage (minor) 1 | . . . . . . . . . . . . . . . . . . . 1 Siege Activations . | . . . . . . . . . . . . . . . . . . . . Martial Activations . | . . . . . . . . . . . . . . . . . . . . Shielding Activations . | . . . . . . . . . . . . . . . . . . . . Robots Disrupted . | . . . . . . . . . . . . . . . . . . . . Combat Hostiles . | . . . . . . . . . . . . . . . . . . . . Robots Corrupted . | . . . . . . . . . . . . . . . . . . . . Combat Hostiles . | . . . . . . . . . . . . . . . . . . . . Parts Fried 4 | . . . . . . . . . 1 2 . 1 . . . . . . . Impact Corruptions 2 | . . . . . . . . . . . . 2 . . . . . . . Robots Melted 32 | . . . . . . . . . . . . 25 . . . 1 4 . 2 Combat Hostiles 30 | . . . . . . . . . . . . 23 . . . 1 4 . 2 Parts Melted 46 | . . . 1 . . . . . . . . 27 . . . 3 6 3 6 Heat Transferred 40835 | 350 250 . 481 . . . . . 150 100 . 29615 465 225 600 1380 2230 2360 2629 Parts Sabotaged . | . . . . . . . . . . . . . . . . . . . . Parts Stolen 3 | . . . . . . . . . 2 1 . . . . . . . . . Parts Stripped . | . . . . . . . . . . . . . . . . . . . . Power Chain Reactions 6 | . . . . . . . . . 5 1 . . . . . . . . . Alert | -11 -10 -10 -9 -9 -9 -8 -8 -7 -7 -7 -7 -7 -6 -6 -6 -6 -6 -5 -5 ------- Run | Yrd Mat Min Mat Min Exi Min Mat Fac Low Low Zio Dee Pro Fac Low Low Dat Pro Fac Maximum Alert Level 3 | . . . 2 1 . . . 1 . . . . . . . . . . 3 Low Security (%) 63 | 100 100 100 13 98 . 100 100 74 . . . . . 100 . . . . 7 Level 1 24 | . . . 53 1 . . . 25 . . . . . . . . . . 58 Level 2 11 | . . . 32 . . . . . . . . . . . . . . . 29 Level 3 . | . . . . . . . . . . . . . . . . . . . 4 Level 4 . | . . . . . . . . . . . . . . . . . . . . Level 5 . | . . . . . . . . . . . . . . . . . . . . High Security . | . . . . . . . . . . . . . . . . . . . . Max Security . | . . . . . . . . . . . . . . . . . . . . Peak Influence 786 | 15 192 103 525 201 . 104 94 264 . . . . . 79 . . . . 786 Initial 201 | . . 27 4 201 . . 9 18 . . . . . 14 . . . . 16 Average 185 | 3 103 24 359 78 . 59 41 149 . . . . . 17 . . . . 395 Influence Increases 5927 | 40 366 246 1065 204 . 104 191 596 348 261 . . 224 177 336 249 . 137 1383 Destroy 0b10 Robot/C 3120 | . 200 140 520 100 . 60 100 300 240 180 . . 160 60 240 180 . 100 540 Destroy 0b10 Robot/NC 390 | 40 25 5 85 25 . . 10 35 5 . . . . 35 20 . . . 105 Destroy Leader 656 | . 56 30 158 20 . 10 22 82 30 30 . . 20 30 10 20 . 10 128 Allied During Kill 1078 | . 65 56 223 59 . 29 38 104 73 51 . . 44 14 66 49 . 27 180 Trap Triggered on 0b10 20 | . . . 20 . . . . . . . . . . . . . . . . Successful Hack 49 | . 5 . 39 . . . . . . . . . . . . . . . 5 Disable Machine 135 | . . . . . . . 15 45 . . . . . 30 . . . . 45 Anti-Garrison Action 200 | . . . . . . . . . . . . . . . . . . . 200 Destroy Structure 234 | . 15 . 5 . . 5 6 15 . . . . . 8 . . . . 180 Partial Spotted 15 | . . . 15 . . . . . . . . . . . . . . . . Lose Combat Pursuer 30 | . . 15 . . . . . 15 . . . . . . . . . . . Influence Decreases 5388 | 40 296 304 560 721 . 80 172 535 440 199 74 . 200 141 396 232 17 110 871 Entered New Map 585 | . . 43 8 316 . . 15 25 40 3 74 . . 10 23 . 17 . 11 Time Decay 4211 | 40 296 242 522 405 . 80 128 490 380 166 . . 190 131 363 222 . 110 446 Lost Part 489 | . . 19 10 . . . . . 20 30 . . 10 . 10 10 . . 380 Lost Ally 103 | . . . 20 . . . 29 20 . . . . . . . . . . 34 Squads Dispatched 19 | . 3 1 1 . . . 1 5 . . . . . 1 . . . . 7 Investigation 5 | . 1 1 . . . . . 1 . . . . . . . . . . 2 Extermination 6 | . . . . . . . . 3 . . . . . 1 . . . . 2 Reinforcement 6 | . 2 . 1 . . . 1 1 . . . . . . . . . . 1 Assault . | . . . . . . . . . . . . . . . . . . . . Garrison . | . . . . . . . . . . . . . . . . . . . . Intercept 2 | . . . . . . . . . . . . . . . . . . . 2 Searches Triggered . | . . . . . . . . . . . . . . . . . . . . Construction Impeded 1 | . . . . . . . . . . . . . . . . . . . 1 Haulers Reinforced . | . . . . . . . . . . . . . . . . . . . . Active Scanning Responses . | . . . . . . . . . . . . . . . . . . . . Cargo Convoy Interrupts 1 | . . . . . . . . . . . . . . . . . . . 1 Stealth | -11 -10 -10 -9 -9 -9 -8 -8 -7 -7 -7 -7 -7 -6 -6 -6 -6 -6 -5 -5 --------- Run | Yrd Mat Min Mat Min Exi Min Mat Fac Low Low Zio Dee Pro Fac Low Low Dat Pro Fac Distress Signals 6 | . . . 1 . . . . 1 . . . . . 1 . . . . 3 Communications Jammed . | . . . . . . . . . . . . . . . . . . . . Distress Signals . | . . . . . . . . . . . . . . . . . . . . Times Spotted 261 | . 18 8 32 5 . 3 5 16 17 11 . 56 7 3 10 9 4 12 45 Peak Tracking Total 26 | . 5 3 5 2 . 3 2 3 5 4 . 26 3 1 3 6 4 5 12 Tactical Retreats 2 | . . 1 . . . . . 1 . . . . . . . . . . . Traps | -11 -10 -10 -9 -9 -9 -8 -8 -7 -7 -7 -7 -7 -6 -6 -6 -6 -6 -5 -5 ------- Run | Yrd Mat Min Mat Min Exi Min Mat Fac Low Low Zio Dee Pro Fac Low Low Dat Pro Fac Traps Triggered 5 | . 1 . 1 . . . . 1 . . . . . 1 . . . . 1 Indirectly . | . . . . . . . . . . . . . . . . . . . . Trap Hack Attempts . | . . . . . . . . . . . . . . . . . . . . Triggered . | . . . . . . . . . . . . . . . . . . . . Disarmed . | . . . . . . . . . . . . . . . . . . . . Reprogrammed 12 | . . . 12 . . . . . . . . . . . . . . . . Reused 4 | . . . 2 . . . . . . . . 2 . . . . . . . Traps Extracted 2 | . . . . . . . . . 2 . . . . . . . . . . Installed 2 | . . . . . . . . . . . . 2 . . . . . . . Triggered 2 | . . . 2 . . . . . . . . . . . . . . . . Most Traps Carried 2 | . . . . . . . . . 2 2 2 2 . . . . . . . Machines | -11 -10 -10 -9 -9 -9 -8 -8 -7 -7 -7 -7 -7 -6 -6 -6 -6 -6 -5 -5 ---------- Run | Yrd Mat Min Mat Min Exi Min Mat Fac Low Low Zio Dee Pro Fac Low Low Dat Pro Fac Machines Disabled 17 | . . . . . . . 1 3 1 . 3 3 . 2 1 . . . 3 Max in Single Turn 1 | . . . . . . . 1 1 1 . 1 1 . 1 1 . . . 1 Garrison Access 1 | . . . . . . . . . . . . . . . . . . . 1 Machines Repaired . | . . . . . . . . . . . . . . . . . . . . Machines Dismantled 4 | . . . . . . . . . . . 3 1 . . . . . . . Machines Sabotaged . | . . . . . . . . . . . . . . . . . . . . Overloaded Fab Kills . | . . . . . . . . . . . . . . . . . . . . Hacking | -11 -10 -10 -9 -9 -9 -8 -8 -7 -7 -7 -7 -7 -6 -6 -6 -6 -6 -5 -5 --------- Run | Yrd Mat Min Mat Min Exi Min Mat Fac Low Low Zio Dee Pro Fac Low Low Dat Pro Fac Machines Accessed 36 | . 5 1 10 . 2 . . 3 . . 1 . . 4 1 . 4 . 5 Terminals 22 | . 4 . 10 . . . . 2 . . . . . 2 1 . . . 3 Fabricators 2 | . . . . . . . . 1 . . . . . 1 . . . . . Repair Stations 1 | . . . . . . . . . . . . . . . . . . . 1 Recycling Units 1 | . 1 . . . . . . . . . . . . . . . . . . Scanalyzers 1 | . . . . . . . . . . . . . . 1 . . . . . Garrison Access 1 | . . . . . . . . . . . . . . . . . . . 1 Total Hacks 104 | . 11 1 29 . 2 . . 4 . . 5 . . 11 2 . 28 . 11 Successful 66 | . 3 1 17 . 2 . . . . . 5 . . 4 2 . 28 . 4 Failed 38 | . 8 . 12 . . . . 4 . . . . . 7 . . . . 7 Catastrophic 8 | . 1 . 1 . . . . 3 . . . . . 2 . . . . 1 Database Lockouts . | . . . . . . . . . . . . . . . . . . . . Manual 50 | . 9 . 21 . 1 . . 3 . . 1 . . 4 2 . . . 9 Terminals 58 | . 9 . 29 . . . . 3 . . . . . 7 2 . . . 8 Fabricators 4 | . . . . . . . . 1 . . . . . 3 . . . . . Repair Stations 2 | . . . . . . . . . . . . . . . . . . . 2 Recycling Units 2 | . 2 . . . . . . . . . . . . . . . . . . Scanalyzers 1 | . . . . . . . . . . . . . . 1 . . . . . Garrison Access 1 | . . . . . . . . . . . . . . . . . . . 1 Terminal Hacks 48 | . 1 1 8 . 2 . . . . . 5 . . 1 2 . 28 . . Record 14 | . . . . . 1 . . . . . . . . . 2 . 11 . . Part Schematic 16 | . . . . . . . . . . . 5 . . . . . 11 . . Robot Schematic 3 | . . . . . . . . . . . . . . . . . 3 . . Prototype ID Bank 3 | . . . . . . . . . . . . . . . . . 3 . . Open Door 1 | . . 1 . . . . . . . . . . . . . . . . . Emergency Access Points 1 | . . . 1 . . . . . . . . . . . . . . . . Locate Traps 4 | . 1 . 3 . . . . . . . . . . . . . . . . Reprogram Traps 3 | . . . 3 . . . . . . . . . . . . . . . . Registered Components 1 | . . . . . . . . . . . . . . 1 . . . . . Zone Layout 1 | . . . 1 . . . . . . . . . . . . . . . . Proto ID Catalog 1 | . . . . . 1 . . . . . . . . . . . . . . Fabricator Hacks 1 | . . . . . . . . . . . . . . 1 . . . . . Network Status 1 | . . . . . . . . . . . . . . 1 . . . . . Repair Station Hacks 1 | . . . . . . . . . . . . . . . . . . . 1 Scan Component 1 | . . . . . . . . . . . . . . . . . . . 1 Recycling Unit Hacks . | . . . . . . . . . . . . . . . . . . . . Scanalyzer 1 | . . . . . . . . . . . . . . 1 . . . . . Insert Component 1 | . . . . . . . . . . . . . . 1 . . . . . Garrison Access Hacks . | . . . . . . . . . . . . . . . . . . . . Unauthorized Hacks 15 | . 2 . 9 . . . . . . . . . . 1 . . . . 3 Terminals 14 | . 2 . 9 . . . . . . . . . . 1 . . . . 2 Track 3 | . . . 3 . . . . . . . . . . . . . . . . Botnet 11 | . 2 . 6 . . . . . . . . . . 1 . . . . 2 Fabricators . | . . . . . . . . . . . . . . . . . . . . Repair Stations . | . . . . . . . . . . . . . . . . . . . . Recycling Units . | . . . . . . . . . . . . . . . . . . . . Scanalyzers . | . . . . . . . . . . . . . . . . . . . . Garrison Access 1 | . . . . . . . . . . . . . . . . . . . 1 Jam 1 | . . . . . . . . . . . . . . . . . . . 1 Data Cores Recovered 1 | . . . 1 . . . . . . . . . . . . . . . . Used . | . . . . . . . . . . . . . . . . . . . . Hacking Detections 24 | . 4 . 9 . . . . 3 . . . . . 3 1 . . . 4 Full Trace Events 1 | . . . . . . . . 1 . . . . . . . . . . . Feedback Events . | . . . . . . . . . . . . . . . . . . . . Feedback Blocked . | . . . . . . . . . . . . . . . . . . . . Robot Schematics Acquired 6 | . . . . . . . . . . . 3 . . . . . 3 . . Robots Built . | . . . . . . . . . . . . . . . . . . . . Authchips . | . . . . . . . . . . . . . . . . . . . . Time . | . . . . . . . . . . . . . . . . . . . . Total Robot Build Rating . | . . . . . . . . . . . . . . . . . . . . Part Schematics Acquired 30 | . . . . . . . . . . . 19 . . . . . 11 . . Parts Built . | . . . . . . . . . . . . . . . . . . . . Authchips . | . . . . . . . . . . . . . . . . . . . . Time . | . . . . . . . . . . . . . . . . . . . . Total Part Build Rating . | . . . . . . . . . . . . . . . . . . . . Parts Repaired . | . . . . . . . . . . . . . . . . . . . . Time . | . . . . . . . . . . . . . . . . . . . . Parts Recycled . | . . . . . . . . . . . . . . . . . . . . Recycled Matter . | . . . . . . . . . . . . . . . . . . . . Retrieved Matter . | . . . . . . . . . . . . . . . . . . . . Retrieved Components . | . . . . . . . . . . . . . . . . . . . . Parts Scanalyzed . | . . . . . . . . . . . . . . . . . . . . Part Schematics Acquired . | . . . . . . . . . . . . . . . . . . . . Parts Damaged . | . . . . . . . . . . . . . . . . . . . . Bothacking | -11 -10 -10 -9 -9 -9 -8 -8 -7 -7 -7 -7 -7 -6 -6 -6 -6 -6 -5 -5 ------------ Run | Yrd Mat Min Mat Min Exi Min Mat Fac Low Low Zio Dee Pro Fac Low Low Dat Pro Fac Used RIF Installer . | . . . . . . . . . . . . . . . . . . . . Robots Hacked . | . . . . . . . . . . . . . . . . . . . . Non-combat . | . . . . . . . . . . . . . . . . . . . . Combat . | . . . . . . . . . . . . . . . . . . . . Robot Hacks Applied . | . . . . . . . . . . . . . . . . . . . . Relay Couplers Released 6 | . . . . . . . . . . . . . . 3 . . . . 3 Machine Destruction 3 | . . . . . . . . . . . . . . . . . . . 3 Programmers 3 | . . . . . . . . . . . . . . 3 . . . . . Fabnet Peak Effective % . | . . . . . . . . . . . . . . . . . . . . Robots Rewired 3 | . . . . . . . . . 1 . . . . . . . . 2 . Allies Hacked . | . . . . . . . . . . . . . . . . . . . . Hacks Repelled . | . . . . . . . . . . . . . . . . . . . . Allies | -11 -10 -10 -9 -9 -9 -8 -8 -7 -7 -7 -7 -7 -6 -6 -6 -6 -6 -5 -5 -------- Run | Yrd Mat Min Mat Min Exi Min Mat Fac Low Low Zio Dee Pro Fac Low Low Dat Pro Fac Total Allies 12 | . 1 3 . 3 . . . . 1 . 2 . . . . . . 2 . Largest Group 4 | . 1 3 3 4 4 4 4 2 2 2 3 3 1 1 1 1 1 3 3 Highest-Rated Group 282 | . 64 103 109 110 110 110 113 91 109 109 282 282 108 114 113 109 109 171 177 Highest-Rated Ally 127 | . 64 64 70 70 70 70 79 85 89 89 96 111 108 114 113 109 109 109 127 Total Orders 1 | . . . . . . . . . . . . . . . . . . . 1 EXPLORE 1 | . . . . . . . . . . . . . . . . . . . 1 Ally Attacks 353 | . 33 8 33 5 . . 20 8 21 19 . 96 10 5 16 5 6 7 61 Total Damage 13162 | . 453 126 804 180 . . 571 360 842 1181 . 2847 660 281 886 161 347 251 3212 Kills 117 | . 8 3 18 1 . . 6 4 5 6 . 21 5 3 8 1 . 5 23 Allies Corrupted . | . . . . . . . . . . . . . . . . . . . . Allies Melted . | . . . . . . . . . . . . . . . . . . . . Intel | -11 -10 -10 -9 -9 -9 -8 -8 -7 -7 -7 -7 -7 -6 -6 -6 -6 -6 -5 -5 ------- Run | Yrd Mat Min Mat Min Exi Min Mat Fac Low Low Zio Dee Pro Fac Low Low Dat Pro Fac Active Infowar (turns) 681 | 8 68 . . . . . . . . . . 601 . . 4 . . . . Optics 68 | . 68 . . . . . . . . . . . . . . . . . . Terrain 605 | . . . . . . . . . . . . 601 . . 4 . . . . Seismic 8 | 8 . . . . . . . . . . . . . . . . . . . Robot Analysis Total 151 | . . . . . . . . . . . . . . . . . 151 . . Derelict Logs Recovered 9 | . . 2 . 1 . . . . 2 1 1 . . . 1 1 . . . Drone Launches 6 | . . . . . . . . . . . . . . . . . . . 6 Drone Recoveries 2 | . . . . . . . . . . . . . . . . . . . 2 Exploration | -11 -10 -10 -9 -9 -9 -8 -8 -7 -7 -7 -7 -7 -6 -6 -6 -6 -6 -5 -5 ------------- Run | Yrd Mat Min Mat Min Exi Min Mat Fac Low Low Zio Dee Pro Fac Low Low Dat Pro Fac Turns Passed 20631 | 129 703 824 1531 1060 359 161 316 1285 900 596 1545 6956 415 483 1150 460 258 308 1192 Spaces Moved 11346 | 71 517 536 949 723 255 113 192 753 439 332 849 3138 196 290 727 289 148 190 639 Core 26 | 5 . . . . . . . . . . . 19 . . . . . . 2 Treads . | . . . . . . . . . . . . . . . . . . . . Legs 197 | . . . . . . . . . . . . 197 . . . . . . . Wheels 11123 | 66 517 536 949 723 255 113 192 753 439 332 849 2922 196 290 727 289 148 190 637 Hover . | . . . . . . . . . . . . . . . . . . . . Flight . | . . . . . . . . . . . . . . . . . . . . Fastest Speed 50 | 50 90 135 140 135 135 135 135 145 160 145 160 50 180 131 135 135 138 138 50 Average Speed 148 | 87 112 135 140 139 135 135 149 154 160 155 160 161 188 150 135 135 144 138 138 Slowest Speed 240 | 90 135 140 140 140 135 135 150 165 160 160 160 190 190 190 135 138 155 138 240 Overloaded Moves . | . . . . . . . . . . . . . . . . . . . . Propulsion Burnouts . | . . . . . . . . . . . . . . . . . . . . Robots Hopped . | . . . . . . . . . . . . . . . . . . . . Potential Cave-ins . | . . . . . . . . . . . . . . . . . . . . Cave-ins Triggered . | . . . . . . . . . . . . . . . . . . . . Exploration Rate (%) 56 | 5 94 83 90 99 61 35 19 19 66 59 85 85 39 8 68 54 77 44 32 Regions Visited 19 Branch Regions 13 Pre-discovered Areas 29 | . . 1 . 1 1 . . . . . . . . . . . 26 . . Known Exits Taken 3 | . . . . . . 1 . . . . . . 1 1 . . . . . Unknown Exits Taken 16 | 1 1 1 1 1 1 . 1 1 1 1 1 1 . . 1 1 1 1 . Scrap Searched 7 | . . . . . . . . . 2 1 1 . . . 2 1 . . . Spaces Dug 76 | . . . . . . . . . 9 . . 52 . . 4 7 . . 4 Terrain Destroyed 280 | . 19 . . . . 5 2 10 26 13 . 120 4 5 13 10 . 5 48 Melee . | . . . . . . . . . . . . . . . . . . . . Projectile 199 | . . . . . . 5 2 10 . . . 100 4 5 13 10 . 5 45 AOE 81 | . 19 . . . . . . . 26 13 . 20 . . . . . . 3 Terrain Rammed . | . . . . . . . . . . . . . . . . . . . . Walls Destroyed . | . . . . . . . . . . . . . . . . . . . . Machines Disabled . | . . . . . . . . . . . . . . . . . . . . Actions | -11 -10 -10 -9 -9 -9 -8 -8 -7 -7 -7 -7 -7 -6 -6 -6 -6 -6 -5 -5 --------- Run | Yrd Mat Min Mat Min Exi Min Mat Fac Low Low Zio Dee Pro Fac Low Low Dat Pro Fac Total 14439 | 103 595 609 1091 755 276 121 221 864 609 387 980 4836 225 326 859 341 184 224 833 Wait 1922 | 1 . 29 17 20 4 5 17 37 118 2 87 1312 17 10 91 33 24 10 88 Move 11327 | 70 516 535 948 722 254 112 191 752 438 331 848 3137 195 289 726 288 147 189 639 Hop . | . . . . . . . . . . . . . . . . . . . . Pick Up 189 | 8 22 15 28 . 6 . 1 12 12 7 4 66 . . 4 . . . 4 Fast Attach 88 | 7 4 . 5 1 1 . 3 9 2 2 . 28 1 5 4 1 2 1 12 Attach 50 | . . 2 5 . . . 1 3 5 13 4 12 . . 1 . . . 4 Detach 22 | . 1 . 1 . . . 1 1 . 7 1 8 . . . . . . 2 Swap 73 | . 8 1 8 . . . . 4 2 2 8 26 . 5 1 2 1 . 5 Drop 258 | 1 16 11 36 1 11 . 3 21 8 3 1 100 2 8 9 3 3 1 20 Fire 440 | 16 28 16 43 11 . 4 4 25 18 20 . 128 10 9 23 14 7 7 57 Melee 13 | . . . . . . . . . . . . 13 . . . . . . . Ram 1 | . . . . . . . . . . . . . . . . . . . 1 Kick . | . . . . . . . . . . . . . . . . . . . . Crush . | . . . . . . . . . . . . . . . . . . . . Escape Stasis . | . . . . . . . . . . . . . . . . . . . . Rewire 22 | . . . . . . . . . 6 . . . . . . . . 16 . Trap 2 | . . . . . . . . . . . . 2 . . . . . . . Miscellaneous 32 | . . . . . . . . . . . 27 4 . . . . . . 1 Route ------- -11/Scrapyard -10/Materials (discovered 4 exits: *Mat x3 / *Min) -10/Mines (discovered 2 exits: *Mat x2) -9/Materials (discovered 4 exits: *Mat x3 / [*Min]) -9/Mines (discovered 4 exits: *Mat x2 / *Exi / *Zio) -9/Exiles -8/Mines -8/Materials (discovered 2 exits: *Fac / *Sto) -7/Factory (discovered 2 exits: *Fac / [*Low]) -7/Lower Caves -7/Lower Caves (discovered 2 exits: *Fac / *Zio) -7/Zion (discovered 2 exits: [*Dee] / [*Pro]) -7/Deep Caves -6/Proximity Caves -6/Factory -6/Lower Caves -6/Lower Caves -6/Data Miner -5/Proximity Caves -5/Factory (discovered 1 exit: Ext) History --------- Turn | Location | Event 13 | -11/Scrapyard | Discovered new exit (range 15) 130 | -11/Scrapyard | Entered Materials 192 | -10/Materials | Discovered new exit (range 18) 300 | -10/Materials | Build established: Mutant 300 | -10/Materials | Discovered new exit (range 5) 586 | -10/Materials | Discovered new exit (range 12) 655 | -10/Materials | Discovered new exit (range 4) 833 | -10/Materials | Entered Mines 836 | -10/Mines | Received a Mining Laser from a helpful Derelict 895 | -10/Mines | Met a Derelict shopkeep closing up shop 988 | -10/Mines | Learned location of Storage (-8) 1008 | -10/Mines | Discovered new exit (range 9) 1101 | -10/Mines | Learned location of 1 exit from Materials 1106 | -10/Mines | Discovered new exit (range 7) 1657 | -10/Mines | Entered Materials 1657 | -9/Materials | Accompanied by 2 allies 1657 | -9/Materials | Evolved 2 slots: Weapon x2 1658 | -9/Materials | Identified exit to Materials 1662 | -9/Materials | Led the pair of lost Derelicts to an unsafe place 1965 | -9/Materials | Build established: Scavenger-Gunner 2128 | -9/Materials | Discovered new exit (range 12) 2449 | -9/Materials | Build established: Gunner 2632 | -9/Materials | Discovered exit to Materials (range 16) 3000 | -9/Materials | Discovered exit to Materials (range 16) 3188 | -9/Materials | Entered Mines 3275 | -9/Mines | Discovered exit to Materials (range 15) 3473 | -9/Mines | Assisted by bots powering up and referring to "LRC-V3" 3775 | -9/Mines | Deemed a non-threat by the Exiles lab entrance 3777 | -9/Mines | Discovered new exit (range 5) 3835 | -9/Mines | Discovered exit to Materials (range 14) 3838 | -9/Mines | Learned location of 1 exit from Materials 3904 | -9/Mines | A Derelict revealed a hidden shortcut to a safe place 4248 | -9/Mines | Entered Exiles 4248 | -9/Exiles | Accompanied by 3 allies 4282 | -9/Exiles | Met 8R-AWN 4307 | -9/Exiles | Met EX-HEX 4344 | -9/Exiles | Met EX-BIN 4359 | -9/Exiles | Aligned with FarCom system 4361 | -9/Exiles | Given EX-Vault access code 4393 | -9/Exiles | Opened EX-Vault 4403 | -9/Exiles | Found XL Autogun Array 4408 | -9/Exiles | Found Supersonic Drone Bay 4411 | -9/Exiles | Found Firepult 4454 | -9/Exiles | Warned to stay clear of 0b10 Research branches 4498 | -9/Exiles | Met EX-DEC 4506 | -9/Exiles | Learned location of Zion (-7) 4584 | -9/Exiles | Discovered new exit (range 14) 4607 | -9/Exiles | Stole three prototypes: XL Autogun Array, Supersonic Drone Bay, Firepult 4607 | -9/Exiles | Entered Mines 4607 | -8/Mines | Accompanied by 3 allies 4706 | -8/Mines | Discovered exit to Materials (range 8) 4768 | -8/Mines | Entered Materials 4768 | -8/Materials | Accompanied by 3 allies 4768 | -8/Materials | Evolved 2 slots: Utility x2 4769 | -8/Materials | Identified exit to Storage 4912 | -8/Materials | Build established: Skirmisher 4971 | -8/Materials | Discovered new exit (range 16) 5084 | -8/Materials | Entered Factory 5084 | -7/Factory | Accompanied by 1 ally 5084 | -7/Factory | Evolved 2 slots: Weapon x2 5086 | -7/Factory | FarCom data flow suspended 5380 | -7/Factory | Build established: Executioner 5599 | -7/Factory | Discovered new exit (range 8) 5869 | -7/Factory | Identified exit to Factory 6269 | -7/Factory | Discovered new exit (range 13) 6369 | -7/Factory | Entered Lower Caves 6369 | -7/Lower Caves | Spotted GJ-0H7(f) 6369 | -7/Lower Caves | Spotted OF-VGC(f) 6370 | -7/Lower Caves | XL Autogun Array stolen by Master Thief 6370 | -7/Lower Caves | Supersonic Drone Bay stolen by Master Thief 6371 | -7/Lower Caves | Encountered a Master Thief 6371 | -7/Lower Caves | Encountered a Master Thief 6403 | -7/Lower Caves | Learned Factory terminal intel 6516 | -7/Lower Caves | Attracted the attention of an 0b10 outpost 6816 | -7/Lower Caves | Spotted B-75 Beast 6834 | -7/Lower Caves | Encountered a Warlord checkpoint 6839 | -7/Lower Caves | Allies destroyed B-75 Beast 7065 | -7/Lower Caves | Discovered new exit (range 7) 7269 | -7/Lower Caves | Entered another Lower Caves area 7269 | -7/Lower Caves | Accompanied by 1 ally 7276 | -7/Lower Caves | Discovered exit to Factory (range 8) 7349 | -7/Lower Caves | Spotted B-75 Beast 7376 | -7/Lower Caves | Allies destroyed B-75 Beast 7403 | -7/Lower Caves | Lost 5 parts (1u4w) 7759 | -7/Lower Caves | Spotted GC-RSI(f) 7760 | -7/Lower Caves | Encountered a Master Thief 7760 | -7/Lower Caves | Spotted 4E-KHP(f) 7761 | -7/Lower Caves | Encountered a Master Thief 7762 | -7/Lower Caves | Weapon Cycler stolen by Master Thief 7763 | -7/Lower Caves | Allies destroyed GC-RSI(f) 7787 | -7/Lower Caves | Discovered new exit (range 13) 7865 | -7/Lower Caves | Entered Zion 7927 | -7/Zion | System corruption reached 10% 7933 | -7/Zion | System corruption cleaned by Quarantine Array 8069 | -7/Zion | Discovered new exit (range 16) 8252 | -7/Zion | Learned Factory stockpile data 8300 | -7/Zion | Given A8's code to call for help 8394 | -7/Zion | Received a hallucinogenic algorithm 8400 | -7/Zion | Enhanced Grunt warped into view, answering call for help 8402 | -7/Zion | Enhanced Grunt warped into view, answering call for help 8534 | -7/Zion | Learned Factory scanalyzer intel 8699 | -7/Zion | Discovered new exit (range 3) 8699 | -7/Zion | Saw the warning signs outside the Deep Caves entrance 8819 | -7/Zion | Met Imprinter 9410 | -7/Zion | Entered Deep Caves 9410 | -7/Deep Caves | Accompanied by 2 allies 9870 | -7/Deep Caves | Z-Facility disabled 9873 | -7/Deep Caves | Attacked by Z-Imprinter 9884 | -7/Deep Caves | Allies destroyed Z-Imprinter 10813 | -7/Deep Caves | Build established: Scavenger-Executioner 11156 | -7/Deep Caves | Build established: Pyromaniac-Executioner 11558 | -7/Deep Caves | Discovered new exit (range 6) 11659 | -7/Deep Caves | Spotted AG-21456 11679 | -7/Deep Caves | Exposed GOLEM chamber 11680 | -7/Deep Caves | Triggered Deep Caves wall 11683 | -7/Deep Caves | Destroyed AG-21456 11724 | -7/Deep Caves | Core integrity fell below 50% 11739 | -7/Deep Caves | Spotted AG-75672 11750 | -7/Deep Caves | Destroyed AG-75672 11758 | -7/Deep Caves | Lost 9 parts (1p2n1u5w) 11771 | -7/Deep Caves | Destroyed 32 combat bots 11779 | -7/Deep Caves | Destroyed AS-53686 11791 | -7/Deep Caves | Destroyed AS-47960 11871 | -7/Deep Caves | Destroyed 30 combat bots 11957 | -7/Deep Caves | Found Mobile Assembly Unit 11997 | -7/Deep Caves | Build established: Scavenger-Gunner 12292 | -7/Deep Caves | Found Prototype Protection 12299 | -7/Deep Caves | Found Prototype Protection 12358 | -7/Deep Caves | Found Prototype Protection 12359 | -7/Deep Caves | Identified Zio. Weapon Casing (x3) 12572 | -7/Deep Caves | Found Zio. Weapon Casing 12623 | -7/Deep Caves | Build established: Scavenger-Executioner 12662 | -7/Deep Caves | Found Zio. Weapon Casing 12795 | -7/Deep Caves | Found Surveybot 24 Scanner 12798 | -7/Deep Caves | Found Surveybot 24 Chip 13515 | -7/Deep Caves | Found GOLEM Unit 13517 | -7/Deep Caves | Found GOLEM Unit 13522 | -7/Deep Caves | Found GOLEM Unit 13561 | -7/Deep Caves | Found GOLEM Unit 13567 | -7/Deep Caves | Found GOLEM Unit 13592 | -7/Deep Caves | Found GOLEM Unit 13598 | -7/Deep Caves | Found GOLEM Unit 13664 | -7/Deep Caves | Found GOLEM Unit 14320 | -7/Deep Caves | Found GOLEM Unit 14359 | -7/Deep Caves | Found GOLEM Unit 15024 | -7/Deep Caves | Build established: Pyromaniac-Executioner 15619 | -7/Deep Caves | Build established: Scavenger-Executioner 16366 | -7/Deep Caves | Entered Proximity Caves 16371 | -6/Proximity Caves | Core integrity fell below 20% 16502 | -6/Proximity Caves | Unaware initiated a cargo recovery operation 16743 | -6/Proximity Caves | Build established: Pyromaniac-Executioner 16746 | -6/Proximity Caves | Discovered exit to Factory (range 9) 16781 | -6/Proximity Caves | Entered Factory 16781 | -6/Factory | Evolved 2 slots: Propulsion x2 16782 | -6/Factory | Identified exit to Lower Caves 16784 | -6/Factory | Loaded intel: 26 terminal locations 16785 | -6/Factory | Loaded intel: 4 scanalyzer locations 17264 | -6/Factory | Entered Lower Caves 17550 | -6/Lower Caves | Acquired the password to a Derelict Tinkerer's latest research 17563 | -6/Lower Caves | Ran a hallucination algorithm 17567 | -6/Lower Caves | Found Prototype Special Weapon 17717 | -6/Lower Caves | Caught by Unaware searching for contraband prototypes 17836 | -6/Lower Caves | Learned Factory emergency access door positions 18003 | -6/Lower Caves | Discovered new exit (range 11) 18414 | -6/Lower Caves | Entered another Lower Caves area 18422 | -6/Lower Caves | Attracted the attention of an 0b10 checkpoint 18814 | -6/Lower Caves | Encountered a Warlord checkpoint 18851 | -6/Lower Caves | Discovered new exit (range 15) 18874 | -6/Lower Caves | Entered Data Miner 18874 | -6/Data Miner | Discovered new exit (range 6) 18901 | -6/Data Miner | Met Data Miner 18931 | -6/Data Miner | Learned location of Section 7 (-2) 18931 | -6/Data Miner | Acquired the access code to Warlord's prototype stash 18955 | -6/Data Miner | Received God Mode back door access code from Data Miner 18979 | -6/Data Miner | Interfaced with the Data Conduit 19132 | -6/Data Miner | Entered Proximity Caves 19372 | -5/Proximity Caves | Attacked by a faux Warlord 19392 | -5/Proximity Caves | Discovered new exit (range 8) 19440 | -5/Proximity Caves | Entered Factory 19440 | -5/Factory | Accompanied by 2 allies 19440 | -5/Factory | Evolved 2 slots: Utility x2 19441 | -5/Factory | Identified exit to Extension 19443 | -5/Factory | Loaded intel: 279 machine locations 20055 | -5/Factory | Build established: Golem 20101 | -5/Factory | Intercept squad dispatched 20117 | -5/Factory | Spotted Tracker 20123 | -5/Factory | Destroyed Tracker 20163 | -5/Factory | Spotted Combat Programmer 20573 | -5/Factory | Cargo convoy interrupted 20596 | -5/Factory | Core integrity fell below 50% 20628 | -5/Factory | Core integrity fell below 20% 20632 | -5/Factory | Destroyed by H-66 Slayer with Gauss Rifle Last Messages --------------- 20629_ K-01 Serf collects debris. 20629_ Dropped Huge Storage Unit. 20629_ K-01 Serf collects debris. 20629_ M-28 Smith repairs K-01 Serf Lgt. Ion Engine. 20630_ Discarded Asb. Focal Cannon. 20630_ Penetrated by Slug. 20630_ K-01 Serf collects debris. 20630_ Slug penetrates Player 2. 20631_ GOLEM Unit springs to life. 20631_ Slammed into H-66 Slayer. 20631_ Penetrated by Slug. 20632_ AG-00602 GOLEM Unit beginning Asb. Alloy Leg integration. 20632_ AG-62339 GOLEM Unit beginning Asb. Alloy Leg integration. 20632_ AG-77680 GOLEM Unit beginning Asb. Alloy Leg integration. 20632_ Penetrated by Slug. 20632_ K-01 Serf destroyed. Map ----- +----------------------------------------------------+ | # # %###?# # #??????? | | ###### %###########+####+# #??????? | | ###+###??# *[= + #??????? | | #??# # """ ""#??????? | | """ #??# % # """"" ""#??????? | | """ #??# # """"" F"#??????? | | """ #??# # ""???????? | | #??############### # ???????? | | """ #?????######?????# ###########??????? | | """ #???????????????#T ##+###########??????? | | """ #???????????????## # % = #??????? | | #???????????""""?# # #??????? | | #######????????# ?""""?# # + ? | | ???????????????# ?""""?#k # # | | ????????????"""# """"?# # """ """ #??""" | | ?????????????R"# ?????# # !%""" """ #??""" | | ????????????"""# """"## # """ """ #??"""?? | | ???????????????# """"## #""" #??????? | | ???????????"""?# """"## #"R """ """ #??"""?" | | ???????????"""?# """"## = #""" """ """ +??"""?" | | ???????????"""?# ##^^^&^# "" """ """ #??"""?" | | ???????????????? ##!!=!!# #??????? | | ###########+######+#####!%]=!###+#############+??? | | u % % G[@h]%]]*! R% | | u [ [%!!G!hh=*=%!= | | ug=% [%![!=m@!![!![| | | u !!!|!=]h%m!*%k[ % ? | | u g !%!G=tk/%%!== w ? | | ###########/#############+#############+#####+#+?? | | ????????????? ?# ! = =* ##????????? #???????? | | ??????????"""""??# #??????????? #???????? | | ??????????"""""?#" #????????????#???????? | | ??????????"""???## #????????????????????? | | ?????????????????# #????????????????????? | | """""????????????# #????????????????????? | | """""????????????# #????????????????????? | | """""????????????# #????????????????????? | | """""????????????# #????????????????????? | | ?????????????????#= #????????????????????? | | """""????????????# #????????????????????? | | """""????????????? ?????????????????????? | | """""?????????????? ????????????????????????? | | """""????????????????????????????????????????????? | | ?????????????????????????????????????????????????? | | ?????????????????????????????????????????????????? | | ?????????????????????????????????????????????????? | | ?????????????????????????????????????????????????? | | ???????????????"""???????????????????????????????? | | ????"T"????????"""???????????????????????????????? | | ???????????????"""???????????????????????????????? | +----------------------------------------------------+ Best States ------------- Heat Dissipation 105 Coolant Potential 130 Energy Generation 27 Energy Capacity 1325 Matter Stores 300 Matter Capacity 300 Sight Range 18 Terrain Scan Range 24 Terrain Scan Density 10 Armor Coverage 600 Resistance: KI 30 Resistance: TH 15 Weapon Shielding 100 Weapon Cycling 15 Evasion (%) 50 Energy Filtering 30 Salvage Targeting 1 Trap Extractor Capacity 6 Item Schematics ----------------- Imp. EM Pulse Cannon | -7/Zion | Archive Power Sword | -7/Zion | Archive Adv. ECM Suite | -7/Zion | Archive Imp. Particle Charger | -7/Zion | Archive Flak Gun | -7/Zion | Archive Enh. Optical Array | -7/Zion | Archive Adv. Field Recycling Unit | -7/Zion | Archive Imp. Focal Shield | -7/Zion | Archive Remote Datajack | -7/Zion | Archive Adv. Heat Sink | -7/Zion | Archive Thermic Laser | -7/Zion | Archive Spear | -7/Zion | Archive Imp. Titanium Leg | -7/Zion | Archive Fusion Compressor | -7/Zion | Archive Battle Cannon | -7/Zion | Free Beamcaster | -7/Zion | Free Ripper | -7/Zion | Free Bore Cannon | -7/Zion | Free Tactical Coordination Suite | -7/Zion | Free Combat Drone Bay | -6/Data Miner | Free Lgt. Regenerative Plating | -6/Data Miner | Free Enh. Armored Leg | -6/Data Miner | Free Adv. EM Disruption Field | -6/Data Miner | Free Cld. Plasma Rifle | -6/Data Miner | Free Impulse Thruster | -6/Data Miner | Free Lrn. Terrain Scanner | -6/Data Miner | Free Hardcell Cannon | -6/Data Miner | Free Hvy. Phase Cannon | -6/Data Miner | Free Railgun | -6/Data Miner | Free Adv. Component Analysis Suite | -6/Data Miner | Free Robot Schematics ------------------ B-48 Gladiator | -7/Zion | Archive B-36 Bruiser | -7/Zion | Archive S-27 Virus | -7/Zion | Archive L-41 Fighter | -6/Data Miner | Free R-10 Processor | -6/Data Miner | Free B-60 Warrior | -6/Data Miner | Free Fabricated ------------ Nothing Repaired ---------- Nothing Alien Tech Used ----------------- None Achievements -------------- Pyromaniac Challenges ------------ None Player 2 | -11 -10 -10 -9 -9 -9 -8 -8 -7 -7 -7 -7 -7 -6 -6 -6 -6 -6 -5 -5 ---------- Run | Yrd Mat Min Mat Min Exi Min Mat Fac Low Low Zio Dee Pro Fac Low Low Dat Pro Fac Slots Evolved 10 | . . 2 . . . 2 2 . . . . . 2 . . . . 2 . Power 1 | . . . . . . 1 . . . . . . . . . . . . . Propulsion 3 | . . 1 . . . . . . . . . . 1 . . . . 1 . Utility 4 | . . . . . . . 2 . . . . . 1 . . . . 1 . Weapon 2 | . . 1 . . . 1 . . . . . . . . . . . . . Parts Attached 107 | . 10 . 6 1 . . 7 6 3 . 2 22 2 8 3 2 . . 35 Parts Lost 32 | . . . . . . . . . . . . 8 1 . 1 1 . . 21 Damage Taken 5646 | . 64 31 96 22 . . 138 93 216 82 . 1225 184 182 250 305 . 14 2744 Core 888 | . 16 21 . 11 . . . 18 17 15 . 134 15 27 98 28 . . 488 Player 2/Cogmind (%) 44 | . 19 58 . 100 . . . 47 11 15 . 51 100 100 100 45 . . 47 Absorbed by Shields 9 | . . . . . . . . 9 . . . . . . . . . . . Damage Inflicted 11578 | . 453 83 598 133 . . 493 349 842 1181 . 1774 660 281 886 161 347 251 3086 Player 2/Cogmind (%) 35 | . 49 23 29 28 . . 75 19 39 57 . 23 55 35 42 20 40 22 43 Combat Hostiles Destroyed 81 | . 5 1 11 1 . . 3 3 5 5 . 13 5 2 7 1 . 5 14 Player 2/Cogmind (%) 33 | . 50 16 52 20 . . 75 20 38 50 . 16 62 66 58 11 . 41 51 Game ------ Seed TractorBarrageMultitool Manual? 0 Play Time 02:22:21 Cumulative 290.5 hours Start 2025.06.21 @ 18:54:17 End 2025.06.22 @ 00:22:49 Sessions 6 Manual Loads 0 Difficulty Rogue Special Mode AFD2020/Player2 Game No. 259 Rogue 259 Adventurer 0 Explorer 0 Win Type - Total 2 Types 1/1/0/0/0/0/0/0/0/0 Lore% 76 Gallery% 80 Achievement% 72 Wizard Run 0 Options --------- Layout 1 ASCII 0 Keyboard 0 Movement Numpad Keybinds 0 Fullscreen 1 Font 24/Smallcaps Map View 50x35 Zoom Use 0% Tactical HUD 1 Map Filters NONE Filters NONE Steam 1 RUN: bac2a18c-8299-4023-b2ef-78e0009a5640